Cogmind - Beta 10.2 *** ADVENTURER MODE // 2021.04.24 @ 19:02:58 Player: Gules Result: Destroyed by G-47 Trooper with Particle Gun Performance ------------- Evolutions (2) 1000 Regions Visited (3) 600 Robots Destroyed (28) 140 Value Destroyed (845) 845 Prototype IDs (0) 0 Alien Tech Used (0) 0 Bonus (0) 0 TOTAL SCORE: 2585 Bonus ------- None Cogmind --------- Core Integrity 0/550 Matter 8/300 Energy 99/100 System Corruption 0% Temperature Cool (9) Movement Core (50) Location -8/Materials Parts ------- > --- POWER (2) -------- (None) > --- PROPULSION (4) --- (None) > --- UTILITY (3) ------ (None) > --- WEAPON (2) ------- (None) > --- INVENTORY (4) ---- Aluminum Leg Structural Scanner Terrain Scanner Electrolaser Peak State ------------ > --- POWER ------------ (None) > --- PROPULSION ------- (None) > --- UTILITY ---------- Hardened Light Armor Plating Shock Absorption System Hacking Suite > --- WEAPON ----------- Flak Gun > --- INVENTORY -------- Structural Scanner Terrain Scanner [Rating: 13] Favorites ----------- Power Light Ion Engine Engine Light Ion Engine Propulsion Aluminum Leg Treads Light Treads Leg Aluminum Leg Utility Hacking Suite Device Terrain Scanner Hackware Hacking Suite Protection Hardened Light Armor Plating Weapon Light Assault Rifle Energy Gun Medium Laser Ballistic Gun Light Assault Rifle Launcher Mini Grenade Launcher Build | -11 -10 -9 -8 ------- Run | Scr Mat Mat Mat Slots Evolved 4 | . . 2 2 Power 1 | . . 1 . Propulsion 2 | . . 1 1 Utility 1 | . . . 1 Weapon . | . . . . Parts Attached 23 | 5 1 11 6 Power 2 | 1 . . 1 Engine 2 | 1 . . 1 Core . | . . . . Reactor . | . . . . Propulsion 6 | 2 . 3 1 Treads 1 | . . 1 . Leg 5 | 2 . 2 1 Wheel . | . . . . Hover . | . . . . Flight . | . . . . Utility 6 | . 1 4 1 Device 3 | . 1 1 1 Storage . | . . . . Processor . | . . . . Hackware 1 | . . 1 . Protection 2 | . . 2 . Artifact . | . . . . Weapon 9 | 2 . 4 3 Energy Gun 2 | 1 . 1 . Energy Cannon . | . . . . Ballistic Gun 4 | 1 . 1 2 Ballistic Cannon . | . . . . Launcher 3 | . . 2 1 Special Weapon . | . . . . Impact Weapon . | . . . . Slashing Weapon . | . . . . Piercing Weapon . | . . . . Special Melee Weapon . | . . . . Unidentified Prototypes . | . . . . Parts Lost 19 | . . 11 8 Power 2 | . . 1 1 Propulsion 6 | . . 5 1 Utility 4 | . . 1 3 Weapon 7 | . . 4 3 Highest Loss Streak 6 | . . 6 4 Average Slot Usage (%) 40 | . 79 53 18 Engine 4 | . 14 4 . Leg 10 | . 28 15 1 Device 3 | . 8 3 2 Hackware 4 | . . 7 4 Protection 2 | . . 3 3 Energy Gun 3 | . 14 4 . Ballistic Gun 7 | . 14 7 5 Launcher 2 | . . 5 1 Naked Turns 16 | . . . 16 Heaviest Build 14 | 6 7 14 12 Greatest Support 20 | 20 20 20 10 Greatest Overweight (x) 3 | . . 2 3 Average Overweight (x) . | . . . . Largest Inventory Capacity 4 | 4 4 4 4 Average Capacity 4 | 4 4 4 4 Most Carried 4 | 2 1 4 4 Average Carried 2 | . . 2 3 Final Capacity 4 | 4 4 4 4 Final Carried 4 | . 1 2 4 Class Distribution -------------------- 60% | Mutant 39% | Hacker-Mutant Dominant Class ---------------- Mutant | -10/Materials Hacker-Mutant | -9/Materials Mutant | -8/Materials Resources | -11 -10 -9 -8 ----------- Run | Scr Mat Mat Mat Matter Collected 450 | 252 10 75 113 Remotely . | . . . . Salvage Created 678 | 40 . 344 294 Parts 38 | 1 . 23 14 Haulers Intercepted . | . . . . Recyclers Shooed 2 | . . 2 . Parts Field Recycled . | . . . . Retrieved Matter . | . . . . Parts Self-Destructed . | . . . . Prevented . | . . . . Kills | -11 -10 -9 -8 ------- Run | Scr Mat Mat Mat Combat Hostiles Destroyed 19 | 1 . 13 5 Guns 6 | 1 . 3 2 AOE 13 | . . 10 3 Classes Destroyed 8 | 1 . 5 2 Worker 1 | . . . 1 Builder 5 | . . 4 1 Tunneler 1 | . . . 1 Recycler 1 | . . 1 . Operator 1 | . . 1 . Swarmer 2 | . . 2 . Grunt 13 | 1 . 8 4 Sentry 4 | . . 3 1 Best Kill Streak 9 | 1 . 9 3 Combat Bots Only 7 | 1 . 7 3 Max Kills in Single Turn 4 | 1 . 4 2 Gunslinging . | . . . . Exploded 3 | . . 3 2 Melee . | . . . . Uniques/NPCs Destroyed . | . . . . Combat | -11 -10 -9 -8 -------- Run | Scr Mat Mat Mat Damage Taken 2305 | 16 . 1250 1039 Core 920 | . . 366 554 Absorbed by Shields . | . . . . Core Remaining (%) 69 | 100 100 8 . Volleys Fired 61 | 2 . 39 20 Largest 2 | 2 . 2 1 Hottest 70 | 70 . 70 39 Shots Fired 78 | 4 . 54 20 Gun 51 | 4 . 31 16 Cannon . | . . . . Launcher 27 | . . 23 4 Special . | . . . . Kinetic 43 | 2 . 25 16 Thermal 8 | 2 . 6 . Explosive 27 | . . 23 4 Electromagnetic . | . . . . Robot Hit Streak 12 | 4 . 12 12 Robot Miss Streak 3 | . . 1 3 Penetration Max . | . . . . Secondary Targets . | . . . . Shots Hit Robots 59 | 4 . 39 16 Core Hits 62 | 2 . 35 25 Critical Hits 1 | . . 1 . Critical Kills . | . . . . Critical Parts Destroyed . | . . . . Melee Attacks . | . . . . Impact . | . . . . Slashing . | . . . . Piercing . | . . . . Sneak Attacks . | . . . . Combat Hostiles . | . . . . Follow-up Attacks . | . . . . Damage Inflicted 2233 | 42 . 1443 748 Guns 637 | 42 . 272 323 Cannons . | . . . . Explosions 1596 | . . 1171 425 Melee . | . . . . Ramming . | . . . . Kinetic 548 | 17 . 208 323 Thermal 89 | 25 . 64 . Explosive 1596 | . . 1171 425 Electromagnetic . | . . . . Impact . | . . . . Slashing . | . . . . Piercing . | . . . . Highest Corruption . | . . . . Average Corruption . | . . . . Corruption Purged . | . . . . Overload Shots . | . . . . Overflow Damage 17 | . . 10 7 Projectiles . | . . . . Explosions 17 | . . 10 7 Melee . | . . . . Knockbacks . | . . . . Impact . | . . . . Kinetic . | . . . . Secondary . | . . . . Self-Inflicted Damage 159 | . . 159 . Shots 6 | . . 6 . Rammed . | . . . . Targets Rammed . | . . . . Kicked . | . . . . Crushed . | . . . . Highest Temperature 36 | 36 . 35 6 Average Temperature 15 | 21 . 15 3 Received Heat Transfer 1239 | 12 . 507 720 Siege Activations . | . . . . Robots Corrupted . | . . . . Combat Hostiles . | . . . . Parts Fried . | . . . . Impact Corruptions . | . . . . Robots Melted . | . . . . Combat Hostiles . | . . . . Parts Melted 2 | 1 . 1 . Heat Transferred 259 | 74 . 185 . Parts Sabotaged . | . . . . Parts Stolen . | . . . . Parts Stripped . | . . . . Power Chain Reactions . | . . . . Missiles Intercepted . | . . . . Alert | -11 -10 -9 -8 ------- Run | Scr Mat Mat Mat Peak Influence 399 | 20 26 399 338 Initial 136 | . 11 9 136 Average 136 | 5 24 128 213 Maximum Alert Level 1 | . . 1 1 Low Security (%) 71 | 100 100 73 52 Level 1 28 | . . 26 47 Level 2 . | . . . . Level 3 . | . . . . Level 4 . | . . . . Level 5 . | . . . . High Security . | . . . . Max Security . | . . . . Squads Dispatched 7 | . . 4 3 Investigation . | . . . . Extermination . | . . . . Reinforcement 7 | . . 4 3 Assault . | . . . . Garrison . | . . . . Intercept . | . . . . Construction Impeded 2 | . . 1 1 Haulers Reinforced . | . . . . Stealth | -11 -10 -9 -8 --------- Run | Scr Mat Mat Mat Distress Signals 2 | . . 1 1 Communications Jammed . | . . . . Distress Signals . | . . . . Times Spotted 48 | 1 1 19 27 Peak Tracking Total 9 | 1 1 5 9 Tactical Retreats 5 | . . . 5 Traps | -11 -10 -9 -8 ------- Run | Scr Mat Mat Mat Traps Triggered 1 | . 1 . . Indirectly . | . . . . Trap Hack Attempts . | . . . . Triggered . | . . . . Disarmed . | . . . . Reprogrammed . | . . . . Reused . | . . . . Traps Extracted . | . . . . Installed . | . . . . Triggered . | . . . . Machines | -11 -10 -9 -8 ---------- Run | Scr Mat Mat Mat Machines Disabled 8 | . . 7 1 Max in Single Turn 1 | . . 1 1 Machines Sabotaged . | . . . . Garrisons Compromised . | . . . . Overloaded Fab Kills . | . . . . Fab Network Shutdowns . | . . . . Hacking | -11 -10 -9 -8 --------- Run | Scr Mat Mat Mat Machines Accessed 2 | . . 2 . Terminals 2 | . . 2 . Fabricators . | . . . . Repair Stations . | . . . . Recycling Units . | . . . . Scanalyzers . | . . . . Garrison Access . | . . . . Total Hacks 6 | . . 6 . Successful 6 | . . 6 . Failed . | . . . . Catastrophic . | . . . . Database Lockouts . | . . . . Manual . | . . . . Terminals 6 | . . 6 . Fabricators . | . . . . Repair Stations . | . . . . Recycling Units . | . . . . Scanalyzers . | . . . . Garrison Access . | . . . . Terminal Hacks 6 | . . 6 . Record 4 | . . 4 . Alert Level 1 | . . 1 . Maintenance Status 1 | . . 1 . Fabricator Hacks . | . . . . Repair Station Hacks . | . . . . Recycling Unit Hacks . | . . . . Scanalyzer . | . . . . Garrison Access Hacks . | . . . . Unauthorized Hacks . | . . . . Terminals . | . . . . Fabricators . | . . . . Repair Stations . | . . . . Recycling Units . | . . . . Scanalyzers . | . . . . Garrison Access . | . . . . Data Cores Recovered . | . . . . Used . | . . . . Hacking Detections 2 | . . 2 . Full Trace Events . | . . . . Feedback Events . | . . . . Feedback Blocked . | . . . . Robot Schematics Acquired . | . . . . Robots Built . | . . . . Matter . | . . . . Time . | . . . . Total Robot Build Rating . | . . . . Part Schematics Acquired . | . . . . Parts Built . | . . . . Matter . | . . . . Time . | . . . . Total Part Build Rating . | . . . . Parts Repaired . | . . . . Time . | . . . . Parts Recycled . | . . . . Recycled Matter . | . . . . Retrieved Matter . | . . . . Retrieved Components . | . . . . Parts Scanalyzed . | . . . . Part Schematics Acquired . | . . . . Parts Damaged . | . . . . Bothacking | -11 -10 -9 -8 ------------ Run | Scr Mat Mat Mat Used RIF Installer . | . . . . Robots Hacked . | . . . . Non-combat . | . . . . Combat . | . . . . Robot Hacks Applied . | . . . . Relay Couplers Released . | . . . . Robots Rewired . | . . . . Allies Hacked . | . . . . Hacks Repelled . | . . . . Allies | -11 -10 -9 -8 -------- Run | Scr Mat Mat Mat Total Allies . | . . . . Largest Group . | . . . . Highest-Rated Group . | . . . . Highest-Rated Ally . | . . . . Total Orders . | . . . . Ally Attacks . | . . . . Total Damage . | . . . . Kills . | . . . . Allies Corrupted . | . . . . Allies Melted . | . . . . Intel | -11 -10 -9 -8 ------- Run | Scr Mat Mat Mat Robot Analysis Total . | . . . . Derelict Logs Recovered . | . . . . Drone Launches . | . . . . Drone Recoveries . | . . . . Exploration | -11 -10 -9 -8 ------------- Run | Scr Mat Mat Mat Turns Passed 1161 | 127 203 287 544 Spaces Moved 1005 | 107 167 144 587 Core 549 | 25 . 19 505 Treads 10 | . . 10 . Legs 446 | 82 167 115 82 Wheels . | . . . . Hover . | . . . . Flight . | . . . . Fastest Speed 50 | 50 120 100 50 Average Speed 96 | 103 120 122 81 Slowest Speed 200 | 120 120 160 200 Overloaded Moves . | . . . . Propulsion Burnouts . | . . . . Robots Hopped . | . . . . Cave-ins Triggered . | . . . . Exploration Rate (%) 22 | 9 30 17 35 Regions Visited 3 Branch Regions . Pre-discovered Areas . | . . . . Known Exits Taken . | . . . . Unknown Exits Taken 3 | 1 1 1 . Scrap Searched . | . . . . Spaces Dug . | . . . . Terrain Destroyed 147 | . . 119 28 Melee . | . . . . Projectile . | . . . . AOE 147 | . . 119 28 Terrain Rammed . | . . . . Walls Destroyed . | . . . . Machines Disabled . | . . . . Actions | -11 -10 -9 -8 --------- Run | Scr Mat Mat Mat Total 1120 | 118 169 202 631 Wait 12 | 2 . . 10 Move 1002 | 106 166 143 587 Hop . | . . . . Pick Up 21 | 3 2 8 8 Fast Attach 2 | 2 . . . Attach 18 | 3 1 8 6 Detach 1 | . . 1 . Swap 3 | . . 3 . Drop . | . . . . Fire 61 | 2 . 39 20 Melee . | . . . . Ram . | . . . . Kick . | . . . . Crush . | . . . . Escape Stasis . | . . . . Rewire . | . . . . Trap . | . . . . Miscellaneous . | . . . . Route ------- -11/Scrapyard -10/Materials -9/Materials -8/Materials (discovered 1 exit: [*Fac]) History --------- Turn | Location | Event 2 | -11/Scrapyard | Met Revision 17 87 | -11/Scrapyard | Discovered new exit (range 8) 128 | -11/Scrapyard | Entered Materials 302 | -10/Materials | Build established: Mutant 311 | -10/Materials | Discovered new exit (range 14) 331 | -10/Materials | Entered another Materials area 331 | -9/Materials | Evolved 2 slots: Power x1, Propulsion x1 491 | -9/Materials | Core integrity fell below 50% 516 | -9/Materials | Lost 5 parts (1p1n1u2w) 577 | -9/Materials | Core integrity fell below 20% 589 | -9/Materials | Discovered new exit (range 15) 610 | -9/Materials | Destroyed 7 combat bots 618 | -9/Materials | Entered another Materials area 618 | -8/Materials | Evolved 2 slots: Propulsion x1, Utility x1 639 | -8/Materials | Lost 6 parts (4n2w) 703 | -8/Materials | Build established: Hacker-Mutant 898 | -8/Materials | Lost 4 parts (1p2u1w) 991 | -8/Materials | Core integrity fell below 50% 1065 | -8/Materials | Core integrity fell below 20% 1078 | -8/Materials | Discovered new exit (range 14) 1150 | -8/Materials | Build established: Mutant 1162 | -8/Materials | Destroyed by G-47 Trooper with Particle Gun Last Messages --------------- K-01 Serf collects debris. The unstable cave ceiling collapses. Hvy. Rocket Launcher destroyed. U-05 Engineer lays Concrete. K-01 Serf collects debris. Aluminum Leg destroyed. Acquired Autogun. Acquired Electrolaser. K-01 Serf cleans the Atomic Centrifuge. T-07 Excavator is excavating. EXIT=FOUND O-16 Technician: "IFF HANDSHAKE FAILED. SECURING TERMINAL." K-01 Serf cleans the Atomic Centrifuge. T-07 Excavator is excavating. ALERT: Hostiles spotted, dispatching reinforcements to Terminal M002. K-01 Serf cleans the Atomic Centrifuge. T-07 Excavator is excavating. K-01 Serf destroyed. Atomic Centrifuge disabled. Autogun destroyed. Map ----- +----------------------------------------------------+ | | | | | | | | | | | | | | | | | | | | | | | ??????????????????????????????? | | ??????????????????????????????? | | ??????????????????????????????? | | ??????????????????????????????? | | ??????????????????????????????? | | ??????????????????????????????? | | ??????????????????????????????? | | ??????????????????????????????? | | ??????????????????????????????? | | ??????????????????????????????? | | ??????????????????????????????? | | ????????????????????????####### | | ????????????????????????#! ! # | | ????????????????????????# Y # | | ???????????????#????????#@ " # | | ??????????????## ??????#g""" # | | ??????????????# ###### "" g# | | ??????????????# #Y""" # | | ??????????????# /Y "" # | | ??????????????# #### # """ # | | ??????????????????????# # """ # | | ??????????????????????# # """ # | | ????????????#?????????# # " # | | ????????????# ????????# #! # | | ????????????# ????????# ####### | | ????????????# ????????# #?????? | | ???????????? ????????# #?????? | | ????????????# ????????# #?????? | | ????????????# ????????# #?????? | | ????????????# ?########+#?????? | | ???????????## ## #?????? | | ???????????# # #?????? | | ???????????+ # #?????? | | ???????????# # #?????? | | ???????????# + #?????? | | ???????????# # #?????? | | ???????????# # #?????? | | ########+### # #?????? | | # # #?????? | +----------------------------------------------------+ Best States ------------- Heat Dissipation 31 Energy Generation 10 Energy Capacity 125 Matter Stores 300 Matter Capacity 300 Sight Range 16 Terrain Scan Range 14 Terrain Scan Density 10 Armor Coverage 225 Resistance: KI 20 Resistance: TH 20 Resistance: EX 45 Resistance: EM 20 Resistance: I 20 Resistance: S 20 Resistance: P 20 Evasion (%) 50 Recoil Reduction 1 Offensive Hacking 20 Item Schematics ----------------- None Robot Schematics ------------------ None Fabricated ------------ Nothing Alien Tech Used ----------------- None Achievements -------------- Close Call Oops Challenges ------------ None Game ------ Seed SigixAdvancedRifle Manual? 0 Play Time 00:32:50 Cumulative 2.5 hours Start 2020.11.22 @ 20:21:43 End 2021.04.24 @ 19:02:58 Sessions 3 Manual Loads 0 Difficulty Adventurer Special Mode None Game No. 3 Rogue 0 Adventurer 3 Explorer 0 Win Type - Total 0 Types 0/0/0/0/0/0/0/0/0 Lore% 12 Gallery% 6 Achievement% 8 Wizard Run 0 Options --------- ASCII 0 Keyboard 0 Movement Mouse Keybinds 0 Fullscreen 1 Font 18/SmallcapsGlow Map View 76x50 Tactical HUD 0 Map Filters NONE Filters NONE Steam 1 RUN: 5e90a2dc-55ca-4bc6-a446-357c4dce2145